Department Family,Entity,Date of Payment,GL Description,Expense Area,Supplier,Transaction Number,Item Text,Amount
MHCLG,PINS,02/09/2019,Office Supplies,Business Support,WWW.OFFICEFURNITUREONL,1000002234,Sit-Stand Rectangular Desks,"1,098.00"
MHCLG,PINS,02/09/2019,Training,Environmental Services (EIA),WWW.BROWNFIELDBREIFING,1000002229,Training course,250.00
MHCLG,PINS,02/09/2019,Training,Environmental Services (EIA),WWW.DTAPUBLICATIONS.CO,1000002227,Training course,312.50
MHCLG,PINS,02/09/2019,Training,Environmental Services (EIA),WWW.DTAPUBLICATIONS.CO,1000002227,Training course,312.50
MHCLG,PINS,02/09/2019,Training,Infrastructure Planning,WWW.THEWATERFRONT.CO.U,1000002228,Training course,338.30
MHCLG,PINS,02/09/2019,Translations,Infrastructure Planning,BRISTOL CITY COUNCIL,1000002228,Translation,"1,402.80"
MHCLG,PINS,02/09/2019,Estate Management,ICT Digital Services,E T M RECYCLING LTD,1000002234,Skip Hire,480.00
MHCLG,PINS,03/09/2019,Safety equipment,Human Resources,SJASUPLIES,1000002247,First Aid Kits,558.01
MHCLG,PINS,03/09/2019,Training,Human Resources,CPTEVENTS.CO.UK,1000002239,PEBA National Conference 2019,312.00
MHCLG,PINS,03/09/2019,Training,Human Resources,ST JOHN AMBULANCE,1000002240,embedding MH,340.00
MHCLG,PINS,03/09/2019,Training,Human Resources,THE MANCHESTER COLLEGE,1000002242,cipd - SB,"2,125.00"
MHCLG,PINS,03/09/2019,Special Bonuses -Permanent Staff,Human Resources,EDENRED UK,1000002245,Comp Vouchers,"2,032.00"
MHCLG,PINS,04/09/2019,Advertising,NSI Fees Planning,HAYMARKET MEDIA GROUP,1000002269,NSI Procurement Advertising,"4,440.00"
MHCLG,PINS,04/09/2019,Conferences and Meeting Facilities,ICT Digital Services,IW GROUP SERVICES (UK),1000002251,Regus room hire x 1 week (March 2019),"3,168.00"
MHCLG,PINS,04/09/2019,Conferences and Meeting Facilities,ICT Digital Services,IW GROUP SERVICES (UK),1000002254,Regus room hire x 1 week (March 2019),"3,168.00"
MHCLG,PINS,04/09/2019,Conferences and Meeting Facilities,ICT Digital Services,IW GROUP SERVICES (UK),1000002256,Regus room hire x 1 week (March 2019),"3,168.00"
MHCLG,PINS,04/09/2019,"IT - PC, Network & Hardware",ICT Digital Services,AMAZON.CO.UK M68XW6AQ4,1000002264,Headsets,898.21
MHCLG,PINS,04/09/2019,"IT - PC, Network & Hardware",ICT Digital Services,AMZNMKTPLACE,1000002267,Tablet stands,289.60
MHCLG,PINS,04/09/2019,"IT - PC, Network & Hardware",ICT Digital Services,HP INC UK LIMITED,1000002252,HP OfficeJet Pro 6950,"3,199.60"
MHCLG,PINS,04/09/2019,"IT - PC, Network & Hardware",ICT Digital Services,HP INC UK LIMITED,1000002253,HP OfficeJet 6950 printers x,"4,799.40"
MHCLG,PINS,04/09/2019,"IT - PC, Network & Hardware",ICT Digital Services,WWW.UK.INSIGHT.COM,1000002255,Philips Monitors,"2,993.86"
MHCLG,PINS,04/09/2019,"IT - PC, Network & Hardware",ICT Digital Services,WWW.UK.INSIGHT.COM,1000002267,USB C cables,271.92
MHCLG,PINS,04/09/2019,Government Procurement Card (expense),ICT Digital Services,APPLE ONLINE STORE GBP,1000002258,Miroir HD Pro Projector,799.90
MHCLG,PINS,04/09/2019,Software Licences,Infrastructure Planning,ADOBE  ACROPRO SUBS,1000002261,Adobe Pro Licenses,"4,888.80"
MHCLG,PINS,04/09/2019,Software Licences,ICT Digital Services,DIGICERT INC,1000002262,Didicert SSL certificate for ACP Azure Production,399.00
MHCLG,PINS,04/09/2019,Software Licences,ICT Digital Services,DIGICERT INC,1000002272,SSL certificate for GoPro self-service portal,331.85
MHCLG,PINS,04/09/2019,Software Licences,ICT Digital Services,ORACLE UK CORPORATION,1000002266,Oracle MySQL subscription training - GS,"2,373.00"
MHCLG,PINS,04/09/2019,Software Licences,ICT Digital Services,ORACLE UK CORPORATION,1000002266,Oracle MySQL subscription training - TS,"2,373.00"
MHCLG,PINS,04/09/2019,Training,Governance & Strategic Support,CIVIL SERVICE COLLEGE,1000002259,Training Course,-780.00
MHCLG,PINS,04/09/2019,Training,ICT Digital Services,QA LIMITED / QA.CO,1000002249,Azure solutions architect technologies - CT,"2,681.00"
MHCLG,PINS,04/09/2019,Training,ICT Digital Services,QA LIMITED / QA.CO,1000002260,QA Requirements Engineering TR & NH,"3,220.00"
MHCLG,PINS,04/09/2019,Training,ICT Digital Services,WWW.THEKNOWLEDGEACADEM,1000002260,Knowledge Academy Virtual ITIL Foundation v4.0 PT,774.00
MHCLG,PINS,04/09/2019,Mobile phone costs,ICT Digital Services,XMA LTD,1000002250,XMA iPhone 8 64Gb,"1,179.22"
MHCLG,PINS,04/09/2019,IT Systems Testing & Auditing,ICT Digital Services,PAYPAL  PGI LTD,1000002248,PGI cyber essentials external audit,300.00
MHCLG,PINS,05/09/2019,"IT - PC, Network & Hardware",ICT Digital Services,AMZNMKTPLACE AMAZON.CO,1000002278,Tablet stands,289.60
MHCLG,PINS,05/09/2019,"IT - PC, Network & Hardware",ICT Digital Services,AMZNMKTPLACE AMAZON.CO,1000002278,Tablet stands,289.60
MHCLG,PINS,05/09/2019,"IT - PC, Network & Hardware",ICT Digital Services,WWW.SERVERTEK.CO.UK,1000002280,HP 300Gb dual-port SAS HDD,967.80
MHCLG,PINS,05/09/2019,Training,ICT Digital Services,WWW.APM.ORG.UK,1000002280,apm women in PM conference Sept 2019 - LC,288.33
MHCLG,PINS,11/09/2019,Training,TR Transformation,THE KNOWLEDGE ACADEMY,1000002282,Agile Training course,"3,101.42"
MHCLG,PINS,13/09/2019,Training,Environmental Services (EIA),PAYPAL  RTPI,1000002285,Training course,349.00
MHCLG,PINS,13/09/2019,Training,Environmental Services (EIA),UOM STORE,1000002286,Training course,708.33
MHCLG,PINS,20/09/2019,"IT - PC, Network & Hardware",ICT Digital Services,PAYPAL  01DIRECT,1000002290,Jabra Evolve 40 headset,"2,879.40"
MHCLG,PINS,20/09/2019,Training,ICT Digital Services,QA LIMITED / QA.CO,1000002290,Microsoft Azure Administrator,"2,681.00"
MHCLG,PINS,23/09/2019,Safety equipment,Human Resources,POSTURITE LTD,1000002293,sit and stand desk,285.58
MHCLG,PINS,23/09/2019,Training,Human Resources,GOVERNMENT EVENTS,1000002292,GOVPD - Gender Pay Gap conference,395.00
MHCLG,PINS,23/09/2019,Training,Human Resources,GOVERNMENT EVENTS,1000002295,Government Events - Shaping the Future of Women in,386.58
MHCLG,PINS,23/09/2019,Training,Human Resources,HAYMARKET MEDIA GROUP,1000002291,C Thorby - planning for houses,450.00
MHCLG,PINS,23/09/2019,Training,Human Resources,HAYMARKET MEDIA GROUP,1000002294,S Bennett - CIPD conference,869.00
MHCLG,PINS,23/09/2019,Training,Human Resources,HAYMARKET MEDIA GROUP,1000002295,CIPD Conference,444.00
MHCLG,PINS,23/09/2019,Recruitment/Procurement Advertising,Human Resources,CIMA,1000002292,CIMA - Job Advertising,534.00
MHCLG,PINS,23/09/2019,Recruitment/Procurement Advertising,Human Resources,HAYMARKET MEDIA GROUP,1000002296,Head OF HR - Advert,"2,100.00"
MHCLG,PINS,25/09/2019,"Furniture, Fittings and carpets",Human Resources,WWW.CAKE-STANDS.CO.UK,1000002300,Glass Display Cabinet,410.65
MHCLG,PINS,25/09/2019,Office Supplies,Business Support,AMZNMKTPLACE,1000002301,Inspector PPE,405.45
MHCLG,PINS,25/09/2019,Office Supplies,Business Support,LASERWARE,1000002299,Paperdry Clipboards,424.75
MHCLG,PINS,25/09/2019,Training,ICT Digital Services,CIVIL SERVICE COLLEGE,1000002302,Civil Service College - Strategic Thinking (PT),595.00
MHCLG,PINS,27/09/2019,Office Supplies,Business Support,SP   PAPERDRY STORE,1000002303,Paperdry Clipboards,434.79
MHCLG,PINS,27/09/2019,Training,Infrastructure Planning,WWW.DTAPUBLICATIONS.CO,1000002304,Dealing with in Combination,312.50
MHCLG,PINS,30/09/2019,Training,ICT Digital Services,WWW.COMBINED-KNOWLEDGE,1000002305,Combined Knowledge Training & Adoption,850.00
MHCLG,PINS,30/09/2019,Web Services,ICT Digital Services,ATLASSIAN,1000002306,Jira software upgrade,"2,143.07"
